[Event "*** Titled Tuesday Blitz"]
[Site "Chess.com"]
[Date "2021.02.16"]
[Round "7"]
[White "grandcoach"]
[Black "ChessFighter1975"]
[Result "1-0"]
[WhiteElo "2244"]
[BlackElo "2378"]
[TimeControl "180+1"]
[EndTime "11:19:10 PST"]
[Termination "grandcoach won by checkmate"]

1. e4 {[%clk 0:03:00.9]} 1... d6 {[%clk 0:02:58.6]} 2. d4 {[%clk 0:03:00.2]}
2... Nf6 {[%clk 0:02:57.4]} 3. Nc3 {[%clk 0:03:00.8]} 3... Nbd7 {[%clk 0:02:56]}
4. Bg5 {[%clk 0:02:51.8]} 4... e5 {[%clk 0:02:55.8]} 5. Nf3 {[%clk 0:02:51.5]}
5... Be7 {[%clk 0:02:55.2]} 6. Bc4 {[%clk 0:02:50.5]} 6... c6 {[%clk 0:02:55.4]}
7. a4 {[%clk 0:02:48.2]} 7... a5 {[%clk 0:02:55.9]} 8. O-O {[%clk 0:02:47]} 8...
h6 {[%clk 0:02:55.5]} 9. Bh4 {[%clk 0:02:45.7]} 9... Qc7 {[%clk 0:02:55.3]} 10.
Re1 {[%clk 0:02:42.5]} 10... Nf8 {[%clk 0:02:53.8]} 11. dxe5 {[%clk 0:02:26.4]}
11... dxe5 {[%clk 0:02:54.7]} 12. Bg3 {[%clk 0:02:26.7]} 12... Ng6 {[%clk
0:02:53.3]} 13. Qd2 {[%clk 0:02:07.9]} 13... Bg4 {[%clk 0:02:48.6]} 14. Qe3
{[%clk 0:02:00]} 14... O-O {[%clk 0:02:48.3]} 15. h3 {[%clk 0:01:54.7]} 15...
Bh5 {[%clk 0:02:38.6]} 16. Nh4 {[%clk 0:01:41.8]} 16... Nxh4 {[%clk 0:02:27.5]}
17. Bxh4 {[%clk 0:01:42.7]} 17... Rad8 {[%clk 0:02:23.7]} 18. Ne2 {[%clk
0:01:31.5]} 18... Bxe2 {[%clk 0:02:10.6]} 19. Rxe2 {[%clk 0:01:30.1]} 19... Rd4
{[%clk 0:02:08.3]} 20. b3 {[%clk 0:01:19.9]} 20... Rfd8 {[%clk 0:02:06.9]} 21.
c3 {[%clk 0:01:17.9]} 21... Rd1+ {[%clk 0:01:58.9]} 22. Rxd1 {[%clk 0:01:17.7]}
22... Rxd1+ {[%clk 0:01:59.8]} 23. Re1 {[%clk 0:01:17.1]} 23... Qd6 {[%clk
0:01:50.5]} 24. Bxf6 {[%clk 0:00:52.9]} 24... Bxf6 {[%clk 0:01:47.2]} 25. Rxd1
{[%clk 0:00:38.5]} 25... Qxd1+ {[%clk 0:01:46.6]} 26. Kh2 {[%clk 0:00:38.9]}
26... h5 {[%clk 0:00:40]} 27. Qd3 {[%clk 0:00:31.5]} 27... Qe1 {[%clk 0:00:34]}
28. Qe2 {[%clk 0:00:23.6]} 28... Qxc3 {[%clk 0:00:33.2]} 29. Qxh5 {[%clk
0:00:22.9]} 29... Qd2 {[%clk 0:00:14.7]} 30. Qxf7+ {[%clk 0:00:22.5]} 30... Kh7
{[%clk 0:00:15.1]} 31. Qxb7 {[%clk 0:00:20.4]} 31... Qf4+ {[%clk 0:00:14.6]} 32.
Kg1 {[%clk 0:00:19]} 32... Qc1+ {[%clk 0:00:14.4]} 33. Bf1 {[%clk 0:00:18.6]}
33... Bh4 {[%clk 0:00:12.5]} 34. Qd7 {[%clk 0:00:14.6]} 34... Qb2 {[%clk
0:00:09.8]} 35. Qf5+ {[%clk 0:00:13.4]} 35... Kg8 {[%clk 0:00:09.2]} 36. g3
{[%clk 0:00:07.7]} 36... Bf6 {[%clk 0:00:09.7]} 37. Qe6+ {[%clk 0:00:06.5]}
37... Kh7 {[%clk 0:00:09.5]} 38. h4 {[%clk 0:00:06.4]} 38... Qb1 {[%clk
0:00:09.2]} 39. Kg2 {[%clk 0:00:05.7]} 39... Qxe4+ {[%clk 0:00:10.1]} 40. Kg1
{[%clk 0:00:04.9]} 40... Qd5 {[%clk 0:00:10.6]} 41. Qf5+ {[%clk 0:00:04.5]}
41... Kg8 {[%clk 0:00:09.9]} 42. Bd3 {[%clk 0:00:04.6]} 42... Kf8 {[%clk
0:00:09.8]} 43. Bc4 {[%clk 0:00:03.5]} 43... Qd1+ {[%clk 0:00:09.6]} 44. Kg2
{[%clk 0:00:02.4]} 44... Qd8 {[%clk 0:00:10.2]} 45. Qe6 {[%clk 0:00:01.9]} 45...
g6 {[%clk 0:00:07.3]} 46. Qf7# {[%clk 0:00:01.8]} 1-0

[Event "*** Titled Tuesday Blitz"]
[Site "Chess.com"]
[Date "2021.02.16"]
[Round "7"]
[White "maximnovik"]
[Black "Fusikk"]
[Result "0-1"]
[WhiteElo "2543"]
[BlackElo "2710"]
[TimeControl "180+1"]
[EndTime "11:19:11 PST"]
[Termination "Fusikk won on time"]

1. Nf3 {[%clk 0:02:51]} 1... c5 {[%clk 0:02:58.2]} 2. e4 {[%clk 0:02:47.3]} 2...
Nc6 {[%clk 0:02:57.7]} 3. Bb5 {[%clk 0:02:47.3]} 3... e6 {[%clk 0:02:52.9]} 4.
O-O {[%clk 0:02:44.6]} 4... Nge7 {[%clk 0:02:52.9]} 5. Re1 {[%clk 0:02:43.8]}
5... a6 {[%clk 0:02:52.1]} 6. Bf1 {[%clk 0:02:41]} 6... Ng6 {[%clk 0:02:51.8]}
7. c3 {[%clk 0:02:40.3]} 7... Be7 {[%clk 0:02:47.2]} 8. d4 {[%clk 0:02:40.3]}
8... cxd4 {[%clk 0:02:47.7]} 9. cxd4 {[%clk 0:02:39.8]} 9... d5 {[%clk
0:02:35.2]} 10. e5 {[%clk 0:02:39.3]} 10... O-O {[%clk 0:02:35]} 11. Nc3 {[%clk
0:02:38.8]} 11... Bd7 {[%clk 0:02:35.3]} 12. g3 {[%clk 0:02:38.3]} 12... h6
{[%clk 0:02:30.3]} 13. h4 {[%clk 0:02:36.4]} 13... Re8 {[%clk 0:02:30.6]} 14.
Be3 {[%clk 0:02:33]} 14... Na5 {[%clk 0:02:27.5]} 15. h5 {[%clk 0:02:24]} 15...
Nf8 {[%clk 0:02:27]} 16. b3 {[%clk 0:02:17.9]} 16... Rc8 {[%clk 0:02:25.3]} 17.
Rc1 {[%clk 0:02:17.2]} 17... Bb4 {[%clk 0:02:14.8]} 18. Bd2 {[%clk 0:02:15.6]}
18... Qb6 {[%clk 0:02:05.5]} 19. Bd3 {[%clk 0:02:06.4]} 19... Rc7 {[%clk
0:02:04.3]} 20. Ne2 {[%clk 0:02:00.5]} 20... Rec8 {[%clk 0:01:58.8]} 21. Rxc7
{[%clk 0:01:58.2]} 21... Rxc7 {[%clk 0:01:58.3]} 22. Nf4 {[%clk 0:01:52.4]}
22... Nc6 {[%clk 0:01:38.8]} 23. Bxb4 {[%clk 0:01:43.9]} 23... Nxb4 {[%clk
0:01:39.7]} 24. Bb1 {[%clk 0:01:42.9]} 24... a5 {[%clk 0:01:17.1]} 25. Qd2
{[%clk 0:01:34.9]} 25... Na6 {[%clk 0:01:09.2]} 26. Ne2 {[%clk 0:01:22.3]} 26...
Qb4 {[%clk 0:01:06.3]} 27. Qe3 {[%clk 0:01:10.8]} 27... Bb5 {[%clk 0:01:03.9]}
28. Kg2 {[%clk 0:01:00.4]} 28... a4 {[%clk 0:00:33]} 29. g4 {[%clk 0:00:56.1]}
29... axb3 {[%clk 0:00:31.3]} 30. axb3 {[%clk 0:00:55.2]} 30... Bxe2 {[%clk
0:00:29.6]} 31. Rxe2 {[%clk 0:00:51.4]} 31... Rc3 {[%clk 0:00:29.2]} 32. Qf4
{[%clk 0:00:46.3]} 32... Qxb3 {[%clk 0:00:21.5]} 33. Ba2 {[%clk 0:00:39.8]}
33... Qd1 {[%clk 0:00:20.5]} 34. Rd2 {[%clk 0:00:35.3]} 34... Qc1 {[%clk
0:00:17.7]} 35. g5 {[%clk 0:00:28.8]} 35... Nb4 {[%clk 0:00:17.6]} 36. gxh6
{[%clk 0:00:25.5]} 36... gxh6 {[%clk 0:00:08.7]} 37. Qxh6 {[%clk 0:00:21.4]}
37... Nh7 {[%clk 0:00:08.8]} 38. Qf4 {[%clk 0:00:09.6]} 38... Nxa2 {[%clk
0:00:08.1]} 39. Qg4+ {[%clk 0:00:09.4]} 39... Kh8 {[%clk 0:00:07.3]} 40. Rxa2
{[%clk 0:00:09.4]} 40... Rc8 {[%clk 0:00:04.7]} 41. Kh2 {[%clk 0:00:06.1]} 41...
Rg8 {[%clk 0:00:04.8]} 42. Qh3 {[%clk 0:00:05.2]} 42... Qf4+ {[%clk 0:00:04.6]}
43. Kh1 {[%clk 0:00:04.3]} 43... Ng5 {[%clk 0:00:05.2]} 44. Nxg5 {[%clk
0:00:03.7]} 44... Rxg5 {[%clk 0:00:06.1]} 45. Ra8+ {[%clk 0:00:02.9]} 45... Kh7
{[%clk 0:00:06.6]} 46. Rf8 {[%clk 0:00:02.1]} 46... Qc1+ {[%clk 0:00:06.4]} 0-1

[Event "*** Titled Tuesday Blitz"]
[Site "Chess.com"]
[Date "2021.02.16"]
[Round "7"]
[White "Skillcam"]
[Black "Chesspirate_Channel"]
[Result "1-0"]
[WhiteElo "2483"]
[BlackElo "2296"]
[TimeControl "180+1"]
[EndTime "11:19:11 PST"]
[Termination "Skillcam won on time"]

1. d4 {[%clk 0:03:00.9]} 1... d5 {[%clk 0:02:58.7]} 2. c4 {[%clk 0:03:00.4]}
2... e5 {[%clk 0:02:58.9]} 3. dxe5 {[%clk 0:03:00.2]} 3... d4 {[%clk 0:02:59.8]}
4. Nf3 {[%clk 0:03:00]} 4... Nc6 {[%clk 0:02:59.8]} 5. a3 {[%clk 0:03:00.2]}
5... Bg4 {[%clk 0:02:59.6]} 6. Nbd2 {[%clk 0:03:00.2]} 6... Qd7 {[%clk
0:02:59.7]} 7. h3 {[%clk 0:03:00.2]} 7... Bf5 {[%clk 0:02:48.6]} 8. g4 {[%clk
0:02:58.8]} 8... Bg6 {[%clk 0:02:48.2]} 9. Bg2 {[%clk 0:02:59]} 9... O-O-O
{[%clk 0:02:47.6]} 10. b4 {[%clk 0:02:58.6]} 10... f6 {[%clk 0:02:47.8]} 11. Bb2
{[%clk 0:02:43.9]} 11... h5 {[%clk 0:02:45.2]} 12. g5 {[%clk 0:02:34.4]} 12...
h4 {[%clk 0:02:41.9]} 13. gxf6 {[%clk 0:02:31.5]} 13... gxf6 {[%clk 0:02:14.3]}
14. Nb3 {[%clk 0:02:30.4]} 14... Nxe5 {[%clk 0:02:08.6]} 15. Bxd4 {[%clk
0:02:20.9]} 15... Qe6 {[%clk 0:01:44.6]} 16. Rc1 {[%clk 0:02:16.5]} 16... Nd3+
{[%clk 0:01:40.1]} 17. Kf1 {[%clk 0:02:13.6]} 17... Nf4 {[%clk 0:01:40.6]} 18.
e3 {[%clk 0:02:04.9]} 18... Nxg2 {[%clk 0:01:40.1]} 19. Kxg2 {[%clk 0:02:05.8]}
19... Nh6 {[%clk 0:01:32]} 20. Nxh4 {[%clk 0:01:53.5]} 20... Be4+ {[%clk
0:01:31.5]} 21. f3 {[%clk 0:01:50.6]} 21... Nf5 {[%clk 0:01:31.9]} 22. Nxf5
{[%clk 0:01:45.5]} 22... Bxf5 {[%clk 0:01:30.7]} 23. h4 {[%clk 0:01:40.3]} 23...
Bd6 {[%clk 0:01:25.6]} 24. e4 {[%clk 0:01:34.9]} 24... Bxe4 {[%clk 0:01:00.9]}
25. fxe4 {[%clk 0:01:32.1]} 25... Qxe4+ {[%clk 0:00:53.7]} 26. Kf2 {[%clk
0:01:13]} 26... Rde8 {[%clk 0:00:24.9]} 27. Qf3 {[%clk 0:01:06.5]} 27... Rxh4
{[%clk 0:00:19.3]} 28. Qxe4 {[%clk 0:01:02]} 28... Rhxe4 {[%clk 0:00:19.2]} 29.
c5 {[%clk 0:00:56.4]} 29... Bf4 {[%clk 0:00:18.3]} 30. Rc2 {[%clk 0:00:54.2]}
30... Bg5 {[%clk 0:00:17.7]} 31. Rh3 {[%clk 0:00:51.3]} 31... Rf4+ {[%clk
0:00:16]} 32. Rf3 {[%clk 0:00:43]} 32... Rh4 {[%clk 0:00:15.9]} 33. Rg3 {[%clk
0:00:26.5]} 33... Bf4 {[%clk 0:00:15.4]} 34. Rg2 {[%clk 0:00:24.7]} 34... Bg5
{[%clk 0:00:15.1]} 35. Re2 {[%clk 0:00:19.1]} 35... Rd8 {[%clk 0:00:14]} 36. Be3
{[%clk 0:00:14]} 36... Rd3 {[%clk 0:00:10.3]} 37. Bxg5 {[%clk 0:00:13.9]} 37...
fxg5 {[%clk 0:00:10]} 38. Re3 {[%clk 0:00:13.3]} 38... Rf4+ {[%clk 0:00:07.4]}
39. Ke2 {[%clk 0:00:13.2]} 39... Rd8 {[%clk 0:00:04.8]} 40. Rxg5 {[%clk
0:00:12.5]} 40... Rh4 {[%clk 0:00:03.3]} 41. Rg2 {[%clk 0:00:12.1]} 41... Rh5
{[%clk 0:00:03.2]} 42. Rf2 {[%clk 0:00:12.1]} 42... Rh7 {[%clk 0:00:03.3]} 43.
Nd2 {[%clk 0:00:11.4]} 43... Rhd7 {[%clk 0:00:04.2]} 44. Nc4 {[%clk 0:00:11.8]}
44... b6 {[%clk 0:00:04.8]} 45. c6 {[%clk 0:00:11.3]} 45... Rd5 {[%clk
0:00:04.7]} 46. Rf7 {[%clk 0:00:09.3]} 46... a5 {[%clk 0:00:05.6]} 47. Ree7
{[%clk 0:00:09.3]} 1-0

[Event "*** Titled Tuesday Blitz"]
[Site "Chess.com"]
[Date "2021.02.16"]
[Round "7"]
[White "sergeikim"]
[Black "BahadirOzen"]
[Result "0-1"]
[WhiteElo "2520"]
[BlackElo "2746"]
[TimeControl "180+1"]
[EndTime "11:19:12 PST"]
[Termination "BahadirOzen won on time"]

1. d4 {[%clk 0:03:00.9]} 1... g6 {[%clk 0:03:00.1]} 2. c4 {[%clk 0:03:00.8]}
2... Bg7 {[%clk 0:03:00.6]} 3. Nc3 {[%clk 0:03:00.8]} 3... d6 {[%clk 0:03:01]}
4. e4 {[%clk 0:03:00.6]} 4... e5 {[%clk 0:03:00.8]} 5. d5 {[%clk 0:02:59.7]}
5... Nd7 {[%clk 0:02:58.7]} 6. Nf3 {[%clk 0:02:54.8]} 6... a5 {[%clk 0:02:55.6]}
7. Bg5 {[%clk 0:02:44.3]} 7... Ngf6 {[%clk 0:02:50.8]} 8. Qd2 {[%clk 0:02:41.9]}
8... Nc5 {[%clk 0:02:49.6]} 9. Qc2 {[%clk 0:02:27.3]} 9... O-O {[%clk
0:02:41.2]} 10. Be2 {[%clk 0:02:26.5]} 10... Bd7 {[%clk 0:02:34.4]} 11. O-O
{[%clk 0:02:25.4]} 11... h6 {[%clk 0:02:32.1]} 12. Bd2 {[%clk 0:02:21.6]} 12...
Nh5 {[%clk 0:02:24.5]} 13. Ne1 {[%clk 0:02:07.2]} 13... Nf4 {[%clk 0:02:23.8]}
14. Bf3 {[%clk 0:02:02.8]} 14... f5 {[%clk 0:02:19.4]} 15. Be3 {[%clk
0:01:45.9]} 15... b6 {[%clk 0:02:11.8]} 16. b3 {[%clk 0:01:37.8]} 16... g5
{[%clk 0:02:02.6]} 17. exf5 {[%clk 0:01:36.2]} 17... Bxf5 {[%clk 0:02:02.5]} 18.
Qd2 {[%clk 0:01:35.9]} 18... e4 {[%clk 0:01:40.7]} 19. Bd1 {[%clk 0:01:34.1]}
19... Qf6 {[%clk 0:01:37.9]} 20. Rc1 {[%clk 0:01:32.6]} 20... Bg6 {[%clk
0:01:22.4]} 21. Nb5 {[%clk 0:01:24.7]} 21... Qe7 {[%clk 0:01:17.2]} 22. Nd4
{[%clk 0:01:20.7]} 22... Rae8 {[%clk 0:00:58.1]} 23. Bg4 {[%clk 0:01:13.5]}
23... h5 {[%clk 0:00:52.1]} 24. Bd1 {[%clk 0:00:46]} 24... Kh7 {[%clk
0:00:49.4]} 25. Kh1 {[%clk 0:00:43]} 25... Bh6 {[%clk 0:00:45.5]} 26. Bc2 {[%clk
0:00:31.5]} 26... h4 {[%clk 0:00:41.4]} 27. h3 {[%clk 0:00:29.8]} 27... Qd7
{[%clk 0:00:38.6]} 28. Kh2 {[%clk 0:00:24.7]} 28... Rf7 {[%clk 0:00:28.9]} 29.
Bd1 {[%clk 0:00:23.9]} 29... Ref8 {[%clk 0:00:22.4]} 30. Bg4 {[%clk 0:00:23.3]}
30... Qe7 {[%clk 0:00:23]} 31. Nc6 {[%clk 0:00:22.1]} 31... Qe8 {[%clk
0:00:20.1]} 32. Nd4 {[%clk 0:00:21.6]} 32... Bg7 {[%clk 0:00:19.3]} 33. Rb1
{[%clk 0:00:18.9]} 33... Be5 {[%clk 0:00:17.3]} 34. Kh1 {[%clk 0:00:17.8]} 34...
Rg7 {[%clk 0:00:17.7]} 35. a3 {[%clk 0:00:17.4]} 35... Bh5 {[%clk 0:00:16.1]}
36. b4 {[%clk 0:00:15.7]} 36... axb4 {[%clk 0:00:17]} 37. axb4 {[%clk
0:00:15.9]} 37... Bxg4 {[%clk 0:00:15.2]} 38. hxg4 {[%clk 0:00:13.8]} 38... Nd7
{[%clk 0:00:14.5]} 39. Ne6 {[%clk 0:00:10.3]} 39... Nf6 {[%clk 0:00:13.5]} 40.
Nxg7 {[%clk 0:00:08.9]} 40... Kxg7 {[%clk 0:00:14.4]} 41. Nc2 {[%clk 0:00:07.1]}
41... Nxg4 {[%clk 0:00:13.3]} 42. Nd4 {[%clk 0:00:06.3]} 42... Rh8 {[%clk
0:00:04.6]} 43. Bxf4 {[%clk 0:00:01.5]} 43... gxf4 {[%clk 0:00:05]} 44. Ne6+
{[%clk 0:00:01.1]} 44... Kg8 {[%clk 0:00:05.4]} 0-1

[Event "*** Titled Tuesday Blitz"]
[Site "Chess.com"]
[Date "2021.02.16"]
[Round "7"]
[White "night_player"]
[Black "andrzej"]
[Result "1-0"]
[WhiteElo "2181"]
[BlackElo "2301"]
[TimeControl "180+1"]
[EndTime "11:19:15 PST"]
[Termination "night_player won on time"]

1. e4 {[%clk 0:03:00.9]} 1... c5 {[%clk 0:03:00]} 2. c3 {[%clk 0:03:00.6]} 2...
d5 {[%clk 0:02:56.8]} 3. exd5 {[%clk 0:03:00.3]} 3... Qxd5 {[%clk 0:02:57.7]} 4.
d4 {[%clk 0:03:00.8]} 4... e6 {[%clk 0:02:56.6]} 5. Nf3 {[%clk 0:03:00.8]} 5...
Nf6 {[%clk 0:02:56.9]} 6. Be3 {[%clk 0:03:01.4]} 6... Nc6 {[%clk 0:02:54.4]} 7.
Bd3 {[%clk 0:03:00.2]} 7... Be7 {[%clk 0:02:47.3]} 8. O-O {[%clk 0:02:59.2]}
8... O-O {[%clk 0:02:46.5]} 9. c4 {[%clk 0:02:43.7]} 9... Qh5 {[%clk 0:02:46]}
10. Qc2 {[%clk 0:02:36.8]} 10... Nb4 {[%clk 0:02:31.4]} 11. Qc3 {[%clk 0:02:35]}
11... Nxd3 {[%clk 0:02:26.6]} 12. Qxd3 {[%clk 0:02:35.9]} 12... Rd8 {[%clk
0:02:24.5]} 13. Qb3 {[%clk 0:02:32.9]} 13... b6 {[%clk 0:02:13]} 14. dxc5 {[%clk
0:02:21.9]} 14... Bb7 {[%clk 0:02:12.8]} 15. Nbd2 {[%clk 0:02:08.8]} 15... Ng4
{[%clk 0:01:52.2]} 16. Bf4 {[%clk 0:01:57.6]} 16... Bxc5 {[%clk 0:01:46]} 17.
Bg3 {[%clk 0:01:48]} 17... Qf5 {[%clk 0:01:18.3]} 18. Rae1 {[%clk 0:01:32.3]}
18... Rd3 {[%clk 0:01:15.8]} 19. Qa4 {[%clk 0:01:28.4]} 19... Rad8 {[%clk
0:01:14.1]} 20. b4 {[%clk 0:01:19.4]} 20... Bf8 {[%clk 0:01:04.1]} 21. h3 {[%clk
0:01:14.5]} 21... Nf6 {[%clk 0:01:00.8]} 22. Re5 {[%clk 0:01:13.6]} 22... Qg6
{[%clk 0:00:52]} 23. Qxa7 {[%clk 0:01:13.2]} 23... Bxf3 {[%clk 0:00:47.1]} 24.
Nxf3 {[%clk 0:01:11.9]} 24... Rxf3 {[%clk 0:00:38.2]} 25. gxf3 {[%clk
0:01:11.6]} 25... Bd6 {[%clk 0:00:38.6]} 26. Kh2 {[%clk 0:00:59.9]} 26... Bxe5
{[%clk 0:00:38.4]} 27. Bxe5 {[%clk 0:01:00.8]} 27... Qf5 {[%clk 0:00:38.9]} 28.
Qc7 {[%clk 0:00:46.3]} 28... Re8 {[%clk 0:00:28.8]} 29. f4 {[%clk 0:00:33.3]}
29... Nh5 {[%clk 0:00:27.5]} 30. Rg1 {[%clk 0:00:28.2]} 30... g6 {[%clk
0:00:23.3]} 31. Qd7 {[%clk 0:00:20]} 31... Ra8 {[%clk 0:00:20.4]} 32. Rg5 {[%clk
0:00:15.1]} 32... Qc2 {[%clk 0:00:18.9]} 33. Rg2 {[%clk 0:00:13.9]} 33... Qxc4
{[%clk 0:00:17.9]} 34. Qe7 {[%clk 0:00:09.4]} 34... Qxa2 {[%clk 0:00:15.3]} 35.
Qg5 {[%clk 0:00:08.1]} 35... Ng7 {[%clk 0:00:10.5]} 36. Qh6 {[%clk 0:00:05.5]}
36... Nf5 {[%clk 0:00:08]} 37. Qg5 {[%clk 0:00:06.4]} 37... Kf8 {[%clk
0:00:01.5]} 38. Qf6 {[%clk 0:00:06]} 38... Ke8 {[%clk 0:00:02.1]} 39. Qh8+
{[%clk 0:00:05.7]} 39... Kd7 {[%clk 0:00:02]} 40. Qxh7 {[%clk 0:00:06]} 40...
Kc6 {[%clk 0:00:02.6]} 41. Qxf7 {[%clk 0:00:05.9]} 41... Kb5 {[%clk 0:00:03.4]}
42. Qd7+ {[%clk 0:00:05.9]} 42... Kxb4 {[%clk 0:00:02.7]} 43. Qc6 {[%clk
0:00:05.1]} 43... Qc4 {[%clk 0:00:01.6]} 44. Qxb6+ {[%clk 0:00:04.8]} 44... Ka4
{[%clk 0:00:02.2]} 45. f3 {[%clk 0:00:04.3]} 45... Rc8 {[%clk 0:00:01]} 46. Qa7+
{[%clk 0:00:02.6]} 1-0

[Event "*** Titled Tuesday Blitz"]
[Site "Chess.com"]
[Date "2021.02.16"]
[Round "7"]
[White "tteshan"]
[Black "swisspower96"]
[Result "0-1"]
[WhiteElo "2362"]
[BlackElo "2640"]
[TimeControl "180+1"]
[EndTime "11:19:16 PST"]
[Termination "swisspower96 won by resignation"]

1. e4 {[%clk 0:03:00.9]} 1... c5 {[%clk 0:02:59.8]} 2. Nf3 {[%clk 0:03:00]} 2...
Nc6 {[%clk 0:03:00.2]} 3. c3 {[%clk 0:02:59.5]} 3... Nf6 {[%clk 0:02:59.7]} 4.
e5 {[%clk 0:02:59.4]} 4... Nd5 {[%clk 0:03:00.4]} 5. d4 {[%clk 0:02:59.8]} 5...
cxd4 {[%clk 0:03:01.1]} 6. cxd4 {[%clk 0:03:00.7]} 6... d6 {[%clk 0:03:00.6]} 7.
Bc4 {[%clk 0:03:00.7]} 7... Nb6 {[%clk 0:03:00.1]} 8. Bb5 {[%clk 0:03:00.3]}
8... dxe5 {[%clk 0:03:00.5]} 9. Nxe5 {[%clk 0:02:59.8]} 9... Bd7 {[%clk
0:03:00.6]} 10. Nxd7 {[%clk 0:02:56.7]} 10... Qxd7 {[%clk 0:03:00.9]} 11. O-O
{[%clk 0:02:55.6]} 11... a6 {[%clk 0:03:00.7]} 12. Bxc6 {[%clk 0:02:54.5]} 12...
Qxc6 {[%clk 0:03:01.6]} 13. Nc3 {[%clk 0:02:53.2]} 13... e6 {[%clk 0:03:02]} 14.
Re1 {[%clk 0:02:51.6]} 14... Be7 {[%clk 0:03:01.5]} 15. Be3 {[%clk 0:02:34.9]}
15... O-O {[%clk 0:02:58.2]} 16. Rc1 {[%clk 0:02:34.8]} 16... Rfd8 {[%clk
0:02:56]} 17. Qg4 {[%clk 0:02:28.4]} 17... Rac8 {[%clk 0:02:51.2]} 18. Bh6
{[%clk 0:02:22.5]} 18... Bf8 {[%clk 0:02:42.1]} 19. Ne4 {[%clk 0:02:09.7]} 19...
Qb5 {[%clk 0:02:42.1]} 20. Bg5 {[%clk 0:01:41.9]} 20... Rxc1 {[%clk 0:01:57.1]}
21. Rxc1 {[%clk 0:01:38.1]} 21... Rxd4 {[%clk 0:01:45.6]} 22. Be3 {[%clk
0:00:45]} 22... Rd8 {[%clk 0:01:30.9]} 23. Nf6+ {[%clk 0:00:44]} 23... Kh8
{[%clk 0:01:31.1]} 24. Qh4 {[%clk 0:00:41.5]} 24... h6 {[%clk 0:01:20.4]} 25.
Nh5 {[%clk 0:00:22.8]} 25... Rc8 {[%clk 0:01:15.9]} 26. Rxc8 {[%clk 0:00:21.2]}
26... Nxc8 {[%clk 0:01:16.8]} 27. Qd8 {[%clk 0:00:21.3]} 27... Kg8 {[%clk
0:01:09]} 28. Nxg7 {[%clk 0:00:16.3]} 28... Qxb2 {[%clk 0:00:50.7]} 29. h3
{[%clk 0:00:13.7]} 29... Qxg7 {[%clk 0:00:34]} 30. Qxc8 {[%clk 0:00:13.6]} 30...
Qa1+ {[%clk 0:00:29.7]} 31. Kh2 {[%clk 0:00:12.4]} 31... Qe5+ {[%clk 0:00:29.4]}
32. g3 {[%clk 0:00:11.3]} 32... h5 {[%clk 0:00:15.3]} 33. Qxb7 {[%clk
0:00:10.8]} 33... h4 {[%clk 0:00:15.2]} 34. Bf4 {[%clk 0:00:10]} 34... hxg3+
{[%clk 0:00:14.6]} 35. Bxg3 {[%clk 0:00:09.7]} 35... Qa5 {[%clk 0:00:12]} 36.
Qc8 {[%clk 0:00:08.8]} 36... Qxa2 {[%clk 0:00:08.9]} 37. Bd6 {[%clk 0:00:08.7]}
37... Qxf2+ {[%clk 0:00:08.8]} 38. Kh1 {[%clk 0:00:09.1]} 38... Qe1+ {[%clk
0:00:08.7]} 39. Kg2 {[%clk 0:00:07.1]} 39... Qd2+ {[%clk 0:00:09.3]} 40. Kg1
{[%clk 0:00:06.8]} 40... Qxd6 {[%clk 0:00:10.2]} 41. Qb7 {[%clk 0:00:04.5]}
41... Bg7 {[%clk 0:00:09.5]} 42. Kh1 {[%clk 0:00:03.9]} 42... Bd4 {[%clk
0:00:09.5]} 43. Qg2+ {[%clk 0:00:03.3]} 43... Kf8 {[%clk 0:00:10]} 44. Qa8+
{[%clk 0:00:03.1]} 44... Kg7 {[%clk 0:00:10.6]} 45. Qg2+ {[%clk 0:00:03]} 45...
Kf6 {[%clk 0:00:11.3]} 46. Qf3+ {[%clk 0:00:03.1]} 46... Ke5 {[%clk 0:00:11.9]}
47. Qe2+ {[%clk 0:00:03.2]} 47... Kd5 {[%clk 0:00:12.2]} 48. Qa2+ {[%clk
0:00:03.7]} 48... Ke5 {[%clk 0:00:11.5]} 49. Qa5+ {[%clk 0:00:04]} 49... Qd5+
{[%clk 0:00:11.1]} 50. Qxd5+ {[%clk 0:00:02.9]} 50... Kxd5 {[%clk 0:00:12]} 51.
Kg2 {[%clk 0:00:03.6]} 51... a5 {[%clk 0:00:12.9]} 52. h4 {[%clk 0:00:03.8]}
52... a4 {[%clk 0:00:13.8]} 53. h5 {[%clk 0:00:04.7]} 53... a3 {[%clk
0:00:14.6]} 0-1